Cogmind - Beta 16.1 @@@ ROGUE MODE // 2026.03.16 @ 09:22:07 Player: Ragnakor Result: Destroyed by X-57 Shotgunner with High-powered Shotgun Performance ------------- Evolutions (2) 1000 Regions Visited (7) 1400 Robots Destroyed (34) 170 Value Destroyed (816) 816 Prototype IDs (3) 60 Alien Tech Used (0) 0 Bonus (360) 360 TOTAL SCORE: 3806 Bonus ------- Follower Combat Kills 60 Aligned with FarCom 300 Cogmind --------- Core Integrity 0/550 Matter 298/300 Energy 56/100 System Corruption 11% Temperature Cool (0) Movement Treading (160) Location -8/Materials Parts ------- > --- POWER (1) -------- (None) > --- PROPULSION (4) --- Light Treads > --- UTILITY (4) ------ (None) > --- WEAPON (2) ------- Hammer > --- INVENTORY (5) ---- Ion Engine Hover Unit Datajack Improved Datajack Peak State ------------ > --- POWER ------------ Light Ion Engine > --- PROPULSION ------- Flight Unit Flight Unit > --- UTILITY ---------- Small Storage Unit Improved Terrain Scanner > --- WEAPON ----------- AWS/Thermal > --- INVENTORY -------- Ion Engine Ion Engine Signal Interpreter EM Shotgun Grenade Launcher Datajack [Rating: 23] Favorites ----------- Power Light Ion Engine Engine Light Ion Engine Power Core Light Nuclear Core Propulsion Flight Unit Treads Light Treads Leg Aluminum Leg Flight Unit Flight Unit Utility Small Storage Unit Device Improved Terrain Scanner Storage Small Storage Unit Processor Signal Interpreter Hackware Hacking Suite Weapon Light Assault Rifle Energy Gun Improved Medium Laser Energy Cannon Heavy Particle Cannon Ballistic Gun Light Assault Rifle Ballistic Cannon Bore Cannon Launcher Grenade Launcher Impact Weapon Hammer Slashing Weapon Mining Claw Build | -11 -10 -10 -9 -9 -9 -8 -8 ------- Run | Yrd Mat Min Mat Min Exi Min Mat Slots Evolved 4 | . . . 2 . . . 2 Power . | . . . . . . . . Propulsion 2 | . . . 2 . . . . Utility 2 | . . . . . . . 2 Weapon . | . . . . . . . . Parts Attached 48 | 7 2 5 8 3 1 1 21 Power 7 | 1 2 . 1 1 . . 2 Engine 5 | 1 2 . 1 1 . . . Core 2 | . . . . . . . 2 Reactor . | . . . . . . . . Propulsion 16 | 2 . 3 3 . . . 8 Treads 4 | . . . . . . . 4 Leg 7 | 2 . 1 . . . . 4 Wheel . | . . . . . . . . Hover . | . . . . . . . . Flight 5 | . . 2 3 . . . . Utility 8 | 2 . . . . . . 6 Device 4 | 1 . . . . . . 3 Storage 2 | 1 . . . . . . 1 Processor 1 | . . . . . . . 1 Hackware 1 | . . . . . . . 1 Protection . | . . . . . . . . Artifact . | . . . . . . . . Weapon 17 | 2 . 2 4 2 1 1 5 Energy Gun 5 | . . . 2 1 1 . 1 Energy Cannon 1 | . . . . . . . 1 Ballistic Gun 6 | 2 . . 2 . . . 2 Ballistic Cannon 1 | . . 1 . . . . . Launcher 2 | . . 1 . . . 1 . Special Weapon . | . . . . . . . . Impact Weapon 1 | . . . . . . . 1 Slashing Weapon 1 | . . . . 1 . . . Piercing Weapon . | . . . . . . . . Special Melee Weapon . | . . . . . . . . Unidentified Prototypes 3 | . . . 2 . 1 . . Corrupted Parts 2 | . . . . . . . 2 System Corruption 5 | . . . . . . . 5 Parts Lost 32 | . 1 4 2 1 . . 24 Power 5 | . 1 . 1 . . . 3 Propulsion 12 | . . 2 1 1 . . 8 Utility 8 | . . . . . . . 8 Weapon 7 | . . 2 . . . . 5 Highest Loss Streak 11 | . 1 4 1 1 . . 11 To Critical Strikes 1 | . . . . . . . 1 Average Backups 5 | . 5 7 3 6 6 6 4 Power 1 | . . 1 1 1 2 2 1 Propulsion . | . 2 3 . . . . . Utility . | . . 1 1 1 1 1 . Weapon 1 | . . 1 . 1 2 2 1 Tool/Special . | . . . . . . . . Unused Backups 6 | . 1 . . 1 1 . 3 Power . | . . . . . . . . Propulsion 2 | . 1 . . . . . 1 Utility 1 | . . . . . 1 . . Weapon 1 | . . . . 1 . . . Tool/Special 2 | . . . . . . . 2 Average Slot Usage (%) 84 | . 100 95 93 76 77 77 79 Engine 10 | . 14 14 10 11 11 11 4 Treads 3 | . . . . . . . 14 Leg 9 | . 28 24 . . . . 7 Flight 13 | . . 1 42 28 22 22 3 Device 10 | . 14 14 11 11 11 11 5 Storage 11 | . 14 14 11 11 11 11 11 Processor 1 | . . . . . . . 7 Hackware 1 | . . . . . . . 5 Energy Gun 5 | . . . 2 11 11 11 4 Ballistic Gun 8 | . 28 9 15 . . . 6 Launcher 3 | . . 10 . . . 10 4 Slashing Weapon 2 | . . . . 3 11 . 1 Peak Build Rating 23 | 9 9 17 15 12 23 11 20 Average Rating 11 | 5 9 12 12 10 10 11 14 On Entrance 8 | . 9 9 7 11 10 11 11 Avg Prop Armor Cover (%) 4 | . . . 4 . . . 4 Naked Turns . | . . . . . . . . Heaviest Build 21 | 12 14 21 15 14 14 15 21 Greatest Support 63 | 20 20 30 16 12 8 8 63 Greatest Overweight (x) 5 | . . 1 . 1 1 1 5 Average Overweight (x) . | . . . . . 1 1 . Largest Inventory Capacity 8 | 8 8 8 8 8 8 8 8 Average Capacity 7 | 6 8 8 8 8 8 8 7 Most Carried 8 | 2 8 8 5 8 8 6 5 Average Carried 5 | 1 5 7 3 6 6 6 4 Final Capacity 8 | 8 8 8 8 8 8 8 5 Final Carried 8 | 2 8 6 4 7 6 6 4 Class Distribution -------------------- 43% | Scavenger-Mutant 28% | Mutant 20% | Scavenger-Skirmisher 5% | Scavenger-Sprinter Dominant Class ---------------- Mutant | -10/Materials Scavenger-Mutant | -10/Mines Scavenger-Sprinter | -9/Materials Scavenger-Mutant | -9/Mines Scavenger-Mutant | -9/Exiles Scavenger-Skirmisher | -8/Mines Scavenger-Mutant | -8/Materials Resources | -11 -10 -10 -9 -9 -9 -8 -8 ----------- Run | Yrd Mat Min Mat Min Exi Min Mat Matter Collected 1225 | 235 150 152 143 136 . 40 369 Remotely 45 | . . . . . . . 45 Salvage Created 1058 | 12 204 63 236 . . . 543 Parts 82 | 5 13 7 19 . . . 38 Haulers Intercepted 1 | . . . 1 . . . . Recyclers Shooed . | . . . . . . . . Parts Field Recycled . | . . . . . . . . Retrieved Matter . | . . . . . . . . Parts Self-Destructed . | . . . . . . . . Prevented . | . . . . . . . . Parts Restored . | . . . . . . . . Kills | -11 -10 -10 -9 -9 -9 -8 -8 ------- Run | Yrd Mat Min Mat Min Exi Min Mat Combat Hostiles Destroyed 44 | . 5 21 5 . . . 13 Guns 22 | . 5 4 5 . . . 8 Cannons 2 | . . . . . . . 2 AOE 19 | . . 17 . . . . 2 Classes Destroyed 10 | 1 3 1 3 . . . 2 Tunneler 3 | 1 . . 1 . . . 1 Hauler 1 | . . . 1 . . . . Recycler 2 | . 1 . . . . . 1 Watcher 1 | . . . 1 . . . . Swarmer 13 | . 3 4 3 . . . 3 Grunt 9 | . 2 . 1 . . . 6 Brawler 1 | . . . . . . . 1 Sentry 3 | . . . 1 . . . 2 Specialist 1 | . . . . . . . 1 Assembled 17 | . . 17 . . . . . Best Kill Streak 19 | 1 2 19 6 . . . 5 Combat Bots Only 19 | . 2 19 5 . . . 5 Max Kills in Single Turn 4 | 1 1 4 1 . . . 2 Gunslinging . | . . . . . . . . Exploded 4 | . . 4 . . . . 1 Melee . | . . . . . . . . Uniques/NPCs Destroyed . | . . . . . . . . Combat | -11 -10 -10 -9 -9 -9 -8 -8 -------- Run | Yrd Mat Min Mat Min Exi Min Mat Hostile Shots Fired 372 | . 29 45 52 3 . . 243 Missed 127 | . 12 15 28 2 . . 70 Hits 245 | . 17 30 24 1 . . 173 Melee 3 | . . . . . . . 3 Projectile 242 | . 17 30 24 1 . . 170 AOE 4 | . . 4 . . . . . Critical Strikes 10 | . . 1 . . . . 9 Damage Taken 3327 | . 229 458 259 39 . . 2342 Core 663 | . 29 34 50 . . . 550 Absorbed by Shields . | . . . . . . . . Regen/Repaired (Parts) 19 | . . . 19 . . . . Core Remaining (%) 87 | 100 . 74 . . . 87 . Volleys Fired 119 | 3 22 17 25 9 . . 43 Largest 2 | 2 2 2 2 1 . . 2 Hottest 138 | 40 40 78 56 56 . . 138 Shots Fired 212 | 6 44 32 46 9 . . 75 Gun 182 | 6 44 16 46 9 . . 61 Cannon 7 | . . 4 . . . . 3 Launcher 23 | . . 12 . . . . 11 Special . | . . . . . . . . Kinetic 148 | 6 44 20 42 . . . 36 Thermal 21 | . . . 4 9 . . 8 Explosive 23 | . . 12 . . . . 11 Electromagnetic 20 | . . . . . . . 20 Robot Hit Streak 11 | 1 7 4 6 6 . . 11 Robot Miss Streak 5 | 3 5 3 5 1 . . 4 Penetration Max . | . . . . . . . . Secondary Targets 5 | . 1 . 2 . . . 2 Max Gunslinging Chain 1 | . 1 . 1 . . . 1 Shots Hit Robots 134 | 1 29 12 32 8 . . 52 Core Hits 103 | 1 11 45 13 2 . . 31 Critical Kills . | . . . . . . . . Critical Parts Destroyed 2 | . . . 1 . . . 1 Critical Strikes 4 | . . . 2 1 . . 1 Burn 2 | . . . 1 1 . . . Destroy 1 | . . . 1 . . . . Smash 1 | . . . . . . . 1 Melee Attacks 5 | . . . . . . . 5 Impact 1 | . . . . . . . 1 Slashing 4 | . . . . . . . 4 Piercing . | . . . . . . . . Sneak Attacks 2 | . . . . . . . 2 Combat Hostiles . | . . . . . . . . Follow-up Attacks . | . . . . . . . . Damage Inflicted 3516 | 10 322 1633 376 134 . . 1041 Guns 1458 | 10 322 76 376 134 . . 540 Cannons 72 | . . 22 . . . . 50 Explosions 1903 | . . 1535 . . . . 368 Melee 82 | . . . . . . . 82 Ramming 1 | . . . . . . . 1 Kinetic 1059 | 10 322 98 323 . . . 306 Thermal 357 | . . . 53 134 . . 170 Explosive 1818 | . . 1535 . . . . 283 Electromagnetic 199 | . . . . . . . 199 Impact 33 | . . . . . . . 33 Slashing 49 | . . . . . . . 49 Piercing . | . . . . . . . . Highest Corruption 11 | . . . . . . . 11 Average Corruption 10 | . . . . . . . 10 Corruption Purged . | . . . . . . . . Corruption Blocked . | . . . . . . . . Effects 5 | . . . . . . . 5 Parts Rejected 3 | . . . . . . . 3 Data Loss (minor) 1 | . . . . . . . 1 Alerts 1 | . . . . . . . 1 Overload Shots . | . . . . . . . . Overflow Damage 101 | . . 56 . . . . 45 Projectiles . | . . . . . . . . Explosions 59 | . . 56 . . . . 3 Melee 42 | . . . . . . . 42 Knockbacks . | . . . . . . . . Impact . | . . . . . . . . Kinetic . | . . . . . . . . Secondary . | . . . . . . . . Self-Inflicted Damage 84 | . . 16 . . . . 68 Shots 5 | . . 1 . . . . 4 Rammed 2 | . . . . . . . 2 Targets Rammed 2 | . . . . . . . 2 Kicked . | . . . . . . . . Crushed . | . . . . . . . . Highest Temperature 117 | . 18 54 48 98 . . 117 Average Temperature 21 | . 9 25 9 43 . . 24 Received Heat Transfer 1008 | . 99 . 45 . . . 864 Siege Activations . | . . . . . . . . Martial Activations . | . . . . . . . . Shielding Activations . | . . . . . . . . Robots Disrupted . | . . . . . . . . Combat Hostiles . | . . . . . . . . Robots Corrupted 1 | . . . . . . . 1 Combat Hostiles 1 | . . . . . . . 1 Parts Fried 4 | . . . . . . . 4 Impact Corruptions 1 | . . . . . . . 1 Robots Melted . | . . . . . . . . Combat Hostiles . | . . . . . . . . Parts Melted 1 | . . . . 1 . . . Heat Transferred 753 | . . . 185 370 . . 198 Parts Sabotaged . | . . . . . . . . Parts Stolen . | . . . . . . . . Parts Stripped . | . . . . . . . . Power Chain Reactions 1 | . . . . . . . 1 Alert | -11 -10 -10 -9 -9 -9 -8 -8 ------- Run | Yrd Mat Min Mat Min Exi Min Mat Maximum Alert Level . | . . . . . . . . Low Security (%) 100 | 100 100 100 100 100 . 100 100 Level 1 . | . . . . . . . . Level 2 . | . . . . . . . . Level 3 . | . . . . . . . . Level 4 . | . . . . . . . . Level 5 . | . . . . . . . . High Security . | . . . . . . . . Max Security . | . . . . . . . . Peak Influence 188 | 5 75 95 188 106 . . 94 Initial 73 | . . 13 21 73 . . . Average 33 | . 12 58 116 56 . . 27 Influence Increases 1112 | 5 178 162 267 83 . . 417 Destroy 0b10 Robot/C 580 | . 100 80 100 40 . . 260 Destroy 0b10 Robot/NC 35 | 5 5 . 15 . . . 10 Destroy Leader 114 | . 20 . 24 10 . . 60 Allied During Kill 3 | . . . . 3 . . . Successful Hack 30 | . 8 . 22 . . . . Disable Machine 15 | . . 15 . . . . . Destroy Structure 125 | . . 67 1 . . . 57 Partial Spotted 90 | . . . 75 . . . 15 Lose Combat Pursuer 120 | . 45 . 30 30 . . 15 Influence Decreases 1092 | 5 144 141 134 255 16 . 397 Entered New Map 186 | . . 21 34 115 16 . . Time Decay 562 | 5 69 80 80 130 . . 198 Lost Part 279 | . 10 40 20 10 . . 199 Purge Threat 65 | . 65 . . . . . . Squads Dispatched 3 | . . . . . . . 3 Investigation 1 | . . . . . . . 1 Extermination . | . . . . . . . . Reinforcement 2 | . . . . . . . 2 Assault . | . . . . . . . . Garrison . | . . . . . . . . Intercept . | . . . . . . . . Searches Triggered . | . . . . . . . . Construction Impeded . | . . . . . . . . Haulers Reinforced . | . . . . . . . . Active Scanning Responses . | . . . . . . . . Cargo Convoy Interrupts . | . . . . . . . . Stealth | -11 -10 -10 -9 -9 -9 -8 -8 --------- Run | Yrd Mat Min Mat Min Exi Min Mat Distress Signals 2 | . 1 . 1 . . . . Communications Jammed . | . . . . . . . . Distress Signals . | . . . . . . . . Times Spotted 83 | . 12 27 17 6 . . 21 Peak Tracking Total 18 | . 6 18 8 2 . . 7 Tactical Retreats 8 | . 2 2 2 1 . . 1 Traps | -11 -10 -10 -9 -9 -9 -8 -8 ------- Run | Yrd Mat Min Mat Min Exi Min Mat Traps Triggered . | . . . . . . . . Indirectly . | . . . . . . . . Trap Hack Attempts . | . . . . . . . . Triggered . | . . . . . . . . Disarmed . | . . . . . . . . Reprogrammed 6 | . 6 . . . . . . Reused . | . . . . . . . . Traps Extracted . | . . . . . . . . Installed . | . . . . . . . . Triggered . | . . . . . . . . Machines | -11 -10 -10 -9 -9 -9 -8 -8 ---------- Run | Yrd Mat Min Mat Min Exi Min Mat Machines Disabled 1 | . . 1 . . . . . Max in Single Turn 1 | . . 1 . . . . . Machines Repaired . | . . . . . . . . Machines Dismantled . | . . . . . . . . Machines Sabotaged . | . . . . . . . . Overloaded Fab Kills . | . . . . . . . . Hacking | -11 -10 -10 -9 -9 -9 -8 -8 --------- Run | Yrd Mat Min Mat Min Exi Min Mat Machines Accessed 11 | . 4 . 5 . . . 2 Terminals 7 | . 4 . 2 . . . 1 Fabricators . | . . . . . . . . Repair Stations 1 | . . . 1 . . . . Recycling Units 2 | . . . 2 . . . . Scanalyzers 1 | . . . . . . . 1 Garrison Access . | . . . . . . . . Total Hacks 39 | . 11 . 21 . . . 7 Successful 22 | . 5 . 13 . . . 4 Failed 16 | . 6 . 8 . . . 2 Catastrophic 1 | . . . 1 . . . . Database Lockouts 1 | . . . . . . . 1 Manual 25 | . 7 . 14 . 1 . 3 Terminals 27 | . 11 . 12 . . . 4 Fabricators . | . . . . . . . . Repair Stations 3 | . . . 3 . . . . Recycling Units 6 | . . . 6 . . . . Scanalyzers 3 | . . . . . . . 3 Garrison Access . | . . . . . . . . Terminal Hacks 5 | . 3 . 1 . . . 1 Robot Analysis 1 | . 1 . . . . . . Unreport Threat 1 | . 1 . . . . . . Reprogram Traps 1 | . 1 . . . . . . Zone Layout 2 | . . . 1 . . . 1 Fabricator Hacks . | . . . . . . . . Repair Station Hacks 2 | . . . 2 . . . . Scan Component 1 | . . . 1 . . . . Repair 1 | . . . 1 . . . . Recycling Unit Hacks 3 | . . . 3 . . . . Report Inventory 2 | . . . 2 . . . . Retrieve Matter 1 | . . . 1 . . . . Scanalyzer 2 | . . . . . . . 2 Retrieve Study 2 | . . . . . . . 2 Garrison Access Hacks . | . . . . . . . . Unauthorized Hacks 10 | . 2 . 7 . . . 1 Terminals 8 | . 2 . 5 . . . 1 Track 1 | . . . 1 . . . . Assimilate 1 | . . . 1 . . . . Botnet 5 | . 2 . 2 . . . 1 Operators 1 | . . . 1 . . . . Fabricators . | . . . . . . . . Repair Stations 1 | . . . 1 . . . . Mechanics 1 | . . . 1 . . . . Recycling Units 1 | . . . 1 . . . . Recyclers 1 | . . . 1 . . . . Scanalyzers . | . . . . . . . . Garrison Access . | . . . . . . . . Data Cores Recovered . | . . . . . . . . Used . | . . . . . . . . Hacking Detections 10 | . 4 . 5 . . . 1 Full Trace Events 1 | . . . . . . . 1 Feedback Events . | . . . . . . . . Feedback Blocked . | . . . . . . . . Robot Schematics Acquired . | . . . . . . . . Robots Built . | . . . . . . . . Authchips . | . . . . . . . . Time . | . . . . . . . . Total Robot Build Rating . | . . . . . . . . Part Schematics Acquired . | . . . . . . . . Parts Built . | . . . . . . . . Authchips . | . . . . . . . . Time . | . . . . . . . . Total Part Build Rating . | . . . . . . . . Part Studies Acquired 2 | . . . . . . . 2 Parts Repaired 1 | . . . 1 . . . . Time 26 | . . . 26 . . . . Parts Recycled . | . . . . . . . . Recycled Matter . | . . . . . . . . Retrieved Matter . | . . . . . . . . Retrieved Components . | . . . . . . . . Parts Scanalyzed . | . . . . . . . . Part Schematics Acquired . | . . . . . . . . Parts Damaged . | . . . . . . . . Bothacking | -11 -10 -10 -9 -9 -9 -8 -8 ------------ Run | Yrd Mat Min Mat Min Exi Min Mat Used RIF Installer . | . . . . . . . . Robots Hacked . | . . . . . . . . Non-combat . | . . . . . . . . Combat . | . . . . . . . . Robot Hacks Applied . | . . . . . . . . Relay Couplers Released . | . . . . . . . . Fabnet Peak Effective % . | . . . . . . . . Robots Rewired . | . . . . . . . . Allies Hacked . | . . . . . . . . Hacks Repelled . | . . . . . . . . Allies | -11 -10 -10 -9 -9 -9 -8 -8 -------- Run | Yrd Mat Min Mat Min Exi Min Mat Total Allies 1 | . . . . 1 . . . Largest Group 1 | . . . . 1 . . . Highest-Rated Group 31 | . . . . 31 . . . Highest-Rated Ally 31 | . . . . 31 . . . Total Orders . | . . . . . . . . Ally Attacks 4 | . . . . 4 . . . Total Damage 82 | . . . . 82 . . . Kills 2 | . . . . 2 . . . Allies Corrupted . | . . . . . . . . Allies Melted . | . . . . . . . . Intel | -11 -10 -10 -9 -9 -9 -8 -8 ------- Run | Yrd Mat Min Mat Min Exi Min Mat Active Infowar (turns) 1892 | 26 422 163 163 262 338 252 266 Terrain 1892 | 26 422 163 163 262 338 252 266 Robot Analysis Total 1 | . 1 . . . . . . Derelict Logs Recovered . | . . . . . . . . Drone Launches . | . . . . . . . . Drone Recoveries . | . . . . . . . . Exploration | -11 -10 -10 -9 -9 -9 -8 -8 ------------- Run | Yrd Mat Min Mat Min Exi Min Mat Turns Passed 2269 | 86 422 163 163 262 338 252 583 Spaces Moved 1884 | 59 292 91 216 460 283 215 268 Core 13 | 7 . . . . . . 6 Treads 158 | . . . . . . . 158 Legs 496 | 52 292 88 . . . . 64 Wheels . | . . . . . . . . Hover . | . . . . . . . . Flight 1217 | . . 3 216 460 283 215 40 Fastest Speed 31 | 50 120 117 31 34 117 117 117 Average Speed 95 | 111 120 119 31 48 117 117 147 Slowest Speed 300 | 120 120 120 34 117 117 117 300 Overloaded Moves . | . . . . . . . . Propulsion Burnouts . | . . . . . . . . Robots Hopped 4 | . . . 1 3 . . . Potential Cave-ins . | . . . . . . . . Cave-ins Triggered . | . . . . . . . . Exploration Rate (%) 43 | 4 50 21 32 87 70 61 21 Regions Visited 7 Branch Regions 4 Pre-discovered Areas . | . . . . . . . . Known Exits Taken . | . . . . . . . . Unknown Exits Taken 7 | 1 1 1 1 1 1 1 . Scrap Searched 3 | . . . . 2 . 1 . Spaces Dug 1 | . . . . . . . 1 Terrain Destroyed 147 | . . 87 . . . . 60 Melee 1 | . . . . . . . 1 Projectile 4 | . . 3 . . . . 1 AOE 142 | . . 84 . . . . 58 Terrain Rammed . | . . . . . . . . Walls Destroyed . | . . . . . . . . Machines Disabled . | . . . . . . . . Actions | -11 -10 -10 -9 -9 -9 -8 -8 --------- Run | Yrd Mat Min Mat Min Exi Min Mat Total 2121 | 70 324 113 263 484 292 215 360 Wait 37 | . 1 . 12 11 . . 13 Move 1869 | 58 291 90 213 453 282 214 268 Hop 4 | . . . 1 3 . . . Pick Up 15 | 2 7 . . 3 1 . 2 Fast Attach 29 | 7 . . 2 1 2 . 17 Attach 12 | . 1 2 3 . 1 . 5 Detach 3 | . . . 1 . 2 . . Swap 19 | . 1 3 6 3 . 1 5 Drop 7 | . 1 1 . 1 4 . . Fire 119 | 3 22 17 25 9 . . 43 Melee 5 | . . . . . . . 5 Ram . | . . . . . . . . Kick . | . . . . . . . . Crush 2 | . . . . . . . 2 Escape Stasis . | . . . . . . . . Rewire . | . . . . . . . . Trap . | . . . . . . . . Miscellaneous . | . . . . . . . . Route ------- -11/Scrapyard -10/Materials (discovered 3 exits: *Mat x2 / [*Min]) -10/Mines -9/Materials -9/Mines (discovered 2 exits: *Mat / *Exi) -9/Exiles -8/Mines -8/Materials History --------- Turn | Location | Event 67 | -11/Scrapyard | Discovered new exit (range 15) 87 | -11/Scrapyard | Entered Materials 191 | -10/Materials | Discovered new exit (range 11) 204 | -10/Materials | Discovered new exit (range 13) 291 | -10/Materials | Discovered new exit (range 7) 329 | -10/Materials | Build established: Mutant 509 | -10/Materials | Entered Mines 510 | -10/Mines | Assembled infested the area 515 | -10/Mines | Assisted by a Guerilla fighting off Assembled 595 | -10/Mines | Destroyed 19 combat bots 646 | -10/Mines | Discovered new exit (range 10) 672 | -10/Mines | Entered Materials 672 | -9/Materials | Evolved 2 slots: Propulsion x2 700 | -9/Materials | Lost 4 parts (2n2w) 824 | -9/Materials | Discovered new exit (range 14) 825 | -9/Materials | Repaired Flight Unit? 835 | -9/Materials | Entered Mines 918 | -9/Mines | Discovered new exit (range 8) 922 | -9/Mines | Received a Mining Laser from a helpful Derelict 980 | -9/Mines | Joined a pair of Derelicts in attacking an 0b10 outpost 1088 | -9/Mines | Build established: Scavenger-Mutant 1091 | -9/Mines | Deemed a non-threat by the Exiles lab entrance 1093 | -9/Mines | Discovered new exit (range 5) 1097 | -9/Mines | Entered Exiles 1126 | -9/Exiles | Met 8R-AWN 1147 | -9/Exiles | Met EX-HEX 1193 | -9/Exiles | Met EX-DEC 1259 | -9/Exiles | Met EX-BIN 1273 | -9/Exiles | Aligned with FarCom system 1274 | -9/Exiles | Given EX-Vault access code 1306 | -9/Exiles | Opened EX-Vault 1310 | -9/Exiles | Found Prototype Energy Gun 1312 | -9/Exiles | Identified AWS/Thermal 1345 | -9/Exiles | Warned to stay clear of 0b10 Research branches 1420 | -9/Exiles | Discovered new exit (range 14) 1435 | -9/Exiles | Entered Mines 1671 | -8/Mines | Discovered new exit (range 12) 1687 | -8/Mines | Entered Materials 1687 | -8/Materials | Evolved 2 slots: Utility x2 1756 | -8/Materials | Build established: Scavenger-Skirmisher 1990 | -8/Materials | Lost 3 parts (1p1u1w) 2081 | -8/Materials | Central database locked down 2155 | -8/Materials | Core integrity fell below 50% 2157 | -8/Materials | System corruption reached 10% 2197 | -8/Materials | Lost 11 parts (2p4n3u2w) 2259 | -8/Materials | Core integrity fell below 20% 2270 | -8/Materials | Destroyed by X-57 Shotgunner with High-powered Shotgun Last Messages --------------- 02258_ Tractor Beam destroyed. 02261_ Imp. Heat Sink destroyed. 02262_ Critical hit (Destroy). 02262_ Pulse Rifle destroyed. 02262_ Acquired Lgt. Treads+. 02264_ Critical hit (Burn: +37). 02265_ Sml. Storage Unit destroyed. 02265_ Acquired Hammer. 02267_ Acquired 13 matter. 02269_ X-57 Shotgunner suffers critical hit (Smash). 02269_ Destroyed VSS Leg. 02269_ X-57 Shotgunner system corrupted by crushing effect. 02270_ X-57 Shotgunner system terminally corrupted. 02270_ Shotgun fried. 02270_ Nuclear Core fried. 02270_ Imp. Heat Sink fried. 02270_ Hpw. Shotgun fried. Map ----- +----------------------------------------------------+ | | | | | | | | | | | | | | | | | ???????????????????????????????????????????????? | | ???????????????????????????????????????????????? | | ???????????????????????????????????????????????? | | ???????????????????????????????????????????????? | | ???????????????????????????????????????????????? | | ????????????????????????????####???????????????? | | ???????????????????????????# +???????????????? | | ???????????????????????????# #???????????????? | | ???????????????????????????+ +???????????????? | | ???????????????????????????# #???????????????? | | ????????????????????????? ?# #???????????????? | | ?????????????????????????? # #???????????????? | | ?????????????????????????? # #???????????????? | | ???????????????????????????+ #???????????????? | | ???????????w???????????????# #???????????????? | | ???????????????????######### ##????????###???? | | ???????????????????#/ x # #??????? ????? | | ???????????????????# @!%# w######## ?????? | | ???????????????????#! / %+[ / ""????? | | ???????????????????#![/g #* #???????? | | ???????????????????#[// # #???????? | | ???????????????????# ### #???????? | | ???????????????????########?# w #???????? | | ????????????????????????????# #??###??? | | ????????????????????????????# // #?? #??? | | ????????????????????????????# / #? #??? | | ????????????????????????????# #? #??? | | ????????????????????????????# # #??? | | ????????????????????????????# # #??? | | ????????????????????????????# + #??? | | ????????????????????????????# ######## # #??? | | ????????????????????????????# ???????# # #??? | | ????????????????????????????# ???????# #?####### | | ????????????????????????????# ???????# #???#* = | | ????????????????????????????# ???????# #???#==%% | | ????????????????????????????? ???????# #???#%[%" | | ?????????????????????????????????????# #???#=* " | | ?????????????????????????????????????# #???#%""= | | ?????????????????????????????????????# #???#[ | | ?????????????????????????????????????# #???#/### | | ?????????????????????????????????????# ##### #?? | | ?????????????????????????????????????# %#?? | +----------------------------------------------------+ Best States ------------- Heat Dissipation 45 Energy Generation 14 Energy Capacity 250 Matter Stores 300 Matter Capacity 300 Sight Range 16 Terrain Scan Range 16 Terrain Scan Density 10 Evasion (%) 63 Recoil Reduction 3 Offensive Hacking 10 Item Schematics ----------------- None Robot Schematics ------------------ None Fabricated ------------ Nothing Repaired ---------- Flight Unit | 5% | -9/Materials Studied --------- Lgt. Treads | -8/Materials | Hacked Carbon-fiber Leg | -8/Materials | Hacked Alien Tech Used ----------------- None Achievements -------------- Exterminator Challenges ------------ None Game ------ Seed MomentumDisruptionPlating Manual? 0 Play Time 00:27:15 Cumulative 30.6 hours Start 2026.03.16 @ 08:57:30 End 2026.03.16 @ 09:22:07 Sessions 1 Manual Loads 0 Difficulty Rogue Special Mode None Game No. 56 Rogue 56 Adventurer 0 Explorer 0 Win Type - Total 0 Types 0/0/0/0/0/0/0/0/0/0 Lore% 25 Gallery% 24 Achievement% 22 Wizard Run 0 Options --------- Layout 1 ASCII 0 Keyboard 0 Movement Numpad Keybinds 0 Fullscreen 1 Font 24/Smallcaps Map View 50x35 Zoom Use 0% Tactical HUD 1 Map Filters NONE Filters NONE Steam 1 RUN: c6f33401-f44b-402a-a795-4fd524e2e007